fUSD/lending_fUSD_20260605
["ID","MTS","AMOUNT","RATE_DAILY","PERIOD"]
[424187612,1780635047000,-225.18697532,0.00024147,2]
[424187608,1780635047000,-538.0,0.00024,2]
[424187615,1780635047000,-270.0455652,0.00024147,2]
[424187611,1780635047000,-348.28,0.0002411,2]
[424187614,1780635047000,-200.0,0.00024147,2]
[424187616,1780635047000,-151.0,0.00024147,2]
[424187609,1780635047000,-2776.0,0.00024,2]
[424187618,1780635047000,-2682.57183977,0.00024147,2]
[424187617,1780635047000,-200.0,0.00024147,2]
[424187619,1780635047000,-270.0455652,0.00024147,2]
[424187621,1780635047000,-958.81929743,0.00024148,2]
[424187620,1780635047000,-200.0,0.00024148,2]
[424187622,1780635047000,-360.96183466,0.00024148,2]
[424187565,1780635047000,-8073.70258278,0.00023599,2]
[424187623,1780635047000,-1842.0326633,0.00024148,2]
[424187602,1780635047000,-1824.0,0.00024,2]
[424187601,1780635047000,-716.0,0.00024,2]
[424187610,1780635047000,-2571.0,0.00024,2]
[424187594,1780635047000,-1257.5843238,0.00024,2]
[424187571,1780635047000,-2586.85809042,0.00023599,2]
[424187596,1780635047000,-471.0,0.00024,2]
[424187581,1780635047000,-600.0,0.0002363,2]
[424187582,1780635047000,-600.0,0.0002363,2]
[424187573,1780635047000,-200.0,0.000236,2]
[424187575,1780635047000,-348.0827721,0.000236,2]
[424187580,1780635047000,-600.0,0.0002363,2]
[424187574,1780635047000,-924.60877283,0.000236,2]
[424187570,1780635047000,-200.0,0.00023599,2]
[424187576,1780635047000,-1776.30922209,0.000236,2]
[424187579,1780635047000,-600.0,0.0002363,2]
[424187577,1780635047000,-862.28603014,0.000236,2]
[424187578,1780635047000,-260.4103811,0.000236,2]
[424187572,1780635047000,-260.4103811,0.00023599,2]
[424187585,1780635047000,-600.0,0.0002363,2]
[424187595,1780635047000,-687.0,0.00024,2]
[424187593,1780635047000,-3600.0,0.00024,2]
[424187587,1780635047000,-600.0,0.0002363,2]
[424187592,1780635047000,-1040.04083179,0.00024,2]
[424187589,1780635047000,-21730.1031742,0.00023695,2]
[424187588,1780635047000,-410.0,0.0002363,2]
[424187590,1780635047000,-166.0,0.00023749,2]
[424187584,1780635047000,-600.0,0.0002363,2]
[424187586,1780635047000,-600.0,0.0002363,2]
[424187583,1780635047000,-600.0,0.0002363,2]
[424187591,1780635047000,-500.0,0.00023858,2]
[424187669,1780635048000,-210.88009305,0.00025,2]
[424187666,1780635048000,-151.0,0.00024997,7]
[424187667,1780635048000,-151.0,0.00024997,7]
[424187664,1780635048000,-1031.49,0.000249,14]
[424187668,1780635048000,-1132.11673633,0.00025,2]
[424187661,1780635048000,-17709.0,0.00024782,2]
[424187658,1780635048000,-1910.18787185,0.00024696,2]
[424187657,1780635048000,-374.31742255,0.00024696,2]
[424187650,1780635048000,-280.03725111,0.00024695,2]
[424187659,1780635048000,-927.27566594,0.00024696,2]
[424187662,1780635048000,-2098.1,0.00024808,7]
[424187663,1780635048000,-609.74,0.000249,7]
[424187660,1780635048000,-280.03725111,0.00024696,2]
[424187680,1780635048000,-862357.78850206,0.00025,2]
[424187681,1780635048000,-697.41011367,0.00025,2]
[424187671,1780635048000,-1814.05518717,0.00025,2]
[424187670,1780635048000,-174.01953729,0.00025,60]
[424187674,1780635048000,-620.74641957,0.00025,2]
[424187672,1780635048000,-2000.0,0.00025,2]
[424187673,1780635048000,-540.0,0.00025,2]
[424187675,1780635048000,-3092.99737993,0.00025,2]
[424187677,1780635048000,-2236.37109545,0.00025,2]
[424187678,1780635048000,-170.05133611,0.00025,2]
[424187682,1780635048000,-478.71455908,0.00025,2]
[424187679,1780635048000,-628.5162284,0.00025,5]
[424187676,1780635048000,-7245.15902368,0.00025,2]
[424187654,1780635048000,-280.03725111,0.00024695,2]
[424187665,1780635048000,-151.0,0.00024997,7]
[424187652,1780635048000,-200.0,0.00024695,2]
[424187625,1780635048000,-270.0455652,0.00024148,2]
[424187648,1780635048000,-500.0,0.00024695,2]
[424187689,1780635048000,-540.71740262,0.00025,2]
[424187630,1780635048000,-500.0,0.00024384,2]
[424187631,1780635048000,-186.98671442,0.00024418,2]
[424187629,1780635048000,-4473.9,0.00024324,2]
[424187626,1780635048000,-3763.71119265,0.0002421,2]
[424187628,1780635048000,-200.0,0.00024263,2]
[424187624,1780635048000,-894.19061325,0.00024148,2]
[424187627,1780635048000,-500.0,0.0002424,2]
[424187632,1780635048000,-168.3888056,0.00024419,2]
[424187633,1780635048000,-233.5188934,0.00024419,2]
[424187643,1780635048000,-1000.0,0.00024658,2]
[424187634,1780635048000,-500.0,0.00024574,2]
[424187636,1780635048000,-172.22658536,0.0002465,2]
[424187649,1780635048000,-200.0,0.00024695,2]
[424187639,1780635048000,-151.0,0.00024658,2]
[424187640,1780635048000,-151.0,0.00024658,2]
[424187638,1780635048000,-151.0,0.00024658,2]
[424187637,1780635048000,-151.0,0.00024658,2]
[424187641,1780635048000,-151.0,0.00024658,2]
[424187642,1780635048000,-151.0,0.00024658,2]
[424187645,1780635048000,-150.0,0.00024658,2]
[424187655,1780635048000,-200.0,0.00024696,2]
[424187644,1780635048000,-706.15,0.00024658,2]
[424187656,1780635048000,-994.29561143,0.00024696,2]
[424187646,1780635048000,-150.0,0.00024658,7]
[424187647,1780635048000,-233.5188934,0.00024695,2]
[424187651,1780635048000,-151.0,0.00024695,2]
[424187653,1780635048000,-2781.82699784,0.00024695,2]
[424187635,1780635048000,-1123.99999999,0.0002462,2]
[424187685,1780635048000,-560.0,0.00025,2]
[424187741,1780635048000,-1000.0,0.00025891,2]
[424187686,1780635048000,-2634.74612663,0.00025,2]
[424187717,1780635048000,-437.4,0.00025767,2]
[424187721,1780635048000,-317.82972749,0.00025788,2]
[424187727,1780635048000,-200.0,0.00025791,2]
[424187728,1780635048000,-151.0,0.00025791,2]
[424187720,1780635048000,-536.72,0.00025786,2]
[424187722,1780635048000,-242.15909246,0.00025788,2]
[424187729,1780635048000,-301.14337869,0.00025791,2]
[424187723,1780635048000,-775.4783256,0.00025789,2]
[424187724,1780635048000,-621.78829552,0.0002579,2]
[424187725,1780635048000,-251.11897888,0.00025791,2]
[424187730,1780635048000,-200.0,0.00025791,2]
[424187726,1780635048000,-500.0,0.00025791,2]
[424187732,1780635048000,-301.14337869,0.00025791,2]
[424187716,1780635048000,-716.67,0.00025644,2]
[424187733,1780635048000,-1069.23467737,0.00025792,2]
[424187737,1780635048000,-997.16350561,0.00025792,2]
[424187738,1780635048000,-301.14337869,0.00025792,2]
[424187735,1780635048000,-402.52935237,0.00025792,2]
[424187739,1780635048000,-5530.0,0.000258,3]
[424187734,1780635048000,-200.0,0.00025792,2]
[424187740,1780635048000,-200.0,0.0002582,2]
[424187742,1780635048000,-1000.0,0.00025891,2]
[424187743,1780635048000,-561.53451674,0.00025891,2]
[424187744,1780635048000,-610.94171144,0.0002599,2]
[424187745,1780635048000,-4598.79772599,0.00026,2]
[424187747,1780635048000,-550.0,0.00026,2]
[424187746,1780635048000,-220.10517838,0.00026,2]
[424187683,1780635048000,-2490.87531731,0.00025,2]
[424187736,1780635048000,-2054.15682156,0.00025792,2]
[424187714,1780635048000,-425.54685572,0.00025405,2]
[424187731,1780635048000,-2991.49051684,0.00025791,2]
[424187713,1780635048000,-500.0,0.00025311,2]
[424187719,1780635048000,-4049.35,0.00025786,2]
[424187692,1780635048000,-553.14850438,0.00025,2]
[424187687,1780635048000,-726.25387337,0.00025,2]
[424187688,1780635048000,-1836.48618283,0.00025,2]
[424187684,1780635048000,-389.0,0.00025,2]
[424187691,1780635048000,-1153.33706139,0.00025,2]
[424187693,1780635048000,-2782.11550237,0.00025,2]
[424187694,1780635048000,-2000.0,0.00025,7]
[424187696,1780635048000,-107131.0,0.00025,2]
[424187707,1780635048000,-1031.08454906,0.00025244,2]
[424187706,1780635048000,-290.3986294,0.00025243,2]
[424187695,1780635048000,-2576.60406265,0.00025,2]
[424187697,1780635048000,-200.0,0.00025042,2]
[424187701,1780635048000,-200.0,0.00025243,2]
[424187690,1780635048000,-796.08937479,0.00025,2]
[424187699,1780635048000,-242.15909246,0.00025243,2]
[424187703,1780635048000,-290.3986294,0.00025243,2]
[424187718,1780635048000,-450.0,0.00025767,2]
[424187711,1780635048000,-961.58486558,0.00025244,2]
[424187710,1780635048000,-1980.8648231,0.00025244,2]
[424187712,1780635048000,-290.3986294,0.00025244,2]
[424187709,1780635048000,-388.16716718,0.00025244,2]
[424187715,1780635048000,-168.28,0.00025548,2]
[424187704,1780635048000,-200.0,0.00025243,2]
[424187700,1780635048000,-500.0,0.00025243,2]
[424187705,1780635048000,-2884.75459676,0.00025243,2]
[424187702,1780635048000,-151.0,0.00025243,2]
[424187698,1780635048000,-15364.33,0.00025167,7]
[424187708,1780635048000,-200.0,0.00025244,2]
[424187789,1780635049000,-15364.33,0.00026889,7]
[424187790,1780635049000,-609.74,0.000269,7]
[424187788,1780635049000,-432.86758713,0.00026888,2]
[424187793,1780635049000,-530.0,0.00027,2]
[424187780,1780635049000,-482.0,0.00026853,2]
[424187786,1780635049000,-1149.82182577,0.00026888,2]
[424187785,1780635049000,-270.0455652,0.00026887,2]
[424187787,1780635049000,-200.0,0.00026888,2]
[424187781,1780635049000,-151.0,0.00026855,2]
[424187782,1780635049000,-151.0,0.00026855,2]
[424187779,1780635049000,-933.0,0.00026834,2]
[424187791,1780635049000,-250.0,0.00027,2]
[424187792,1780635049000,-1053.00911247,0.00027,2]
[424187794,1780635049000,-167.0,0.00027,7]
[424187804,1780635049000,-565.045939,0.00027,2]
[424187796,1780635049000,-284.914396,0.00027,2]
[424187797,1780635049000,-284.914396,0.00027,2]
[424187799,1780635049000,-284.914396,0.00027,2]
[424187800,1780635049000,-151.0,0.00027,2]
[424187802,1780635049000,-151.0,0.00027,2]
[424187805,1780635049000,-565.045939,0.00027,2]
[424187801,1780635049000,-151.0,0.00027,2]
[424187798,1780635049000,-284.914396,0.00027,2]
[424187807,1780635049000,-1541.829306,0.00027,2]
[424187810,1780635049000,-32339.79021123,0.00027,7]
[424187808,1780635049000,-1541.829306,0.00027,2]
[424187806,1780635049000,-565.045939,0.00027,2]
[424187777,1780635049000,-250.0,0.00026834,2]
[424187795,1780635049000,-163.0,0.00027,7]
[424187774,1780635049000,-1357.0,0.00026834,2]
[424187748,1780635049000,-215.77576141,0.00026,3]
[424187775,1780635049000,-1278.961,0.00026834,2]
[424187750,1780635049000,-6010.95,0.00026027,2]
[424187751,1780635049000,-248.77,0.00026027,7]
[424187749,1780635049000,-1000.0,0.00026002,2]
[424187753,1780635049000,-151.48226882,0.00026028,7]
[424187752,1780635049000,-191.02827794,0.00026028,2]
[424187756,1780635049000,-260.4103811,0.00026339,2]
[424187757,1780635049000,-1108.79636043,0.0002634,2]
[424187755,1780635049000,-4473.9,0.00026296,2]
[424187758,1780635049000,-200.0,0.0002634,2]
[424187754,1780635049000,-500.0,0.0002607,2]
[424187760,1780635049000,-4848.6414013,0.00026352,2]
[424187767,1780635049000,-2000.0,0.00026751,2]
[424187768,1780635049000,-2000.0,0.00026751,2]
[424187778,1780635049000,-419.0,0.00026834,2]
[424187759,1780635049000,-417.4229384,0.0002634,2]
[424187769,1780635049000,-2000.0,0.00026751,2]
[424187761,1780635049000,-27956.72095407,0.000264,2]
[424187763,1780635049000,-200.0,0.00026599,2]
[424187771,1780635049000,-2000.0,0.00026751,2]
[424187762,1780635049000,-5530.0,0.000265,5]
[424187764,1780635049000,-2000.0,0.00026751,2]
[424187765,1780635049000,-2000.0,0.00026751,2]
[424187766,1780635049000,-2000.0,0.00026751,2]
[424187773,1780635049000,-221.0,0.00026751,2]
[424187772,1780635049000,-150.0,0.00026751,2]
[424187783,1780635049000,-151.0,0.00026855,2]
[424187784,1780635049000,-151.0,0.00026855,2]
[424187776,1780635049000,-527.0,0.00026834,2]
[424187770,1780635049000,-2000.0,0.00026751,2]
[424187809,1780635049000,-1541.829306,0.00027,2]
[424187803,1780635049000,-565.045939,0.00027,2]
[424187822,1780635049000,-151.0,0.00027,2]
[424187846,1780635049000,-1280.0,0.00027397,2]
[424187845,1780635049000,-500.0,0.00027397,2]
[424187850,1780635049000,-1280.0,0.00027397,2]
[424187848,1780635049000,-1280.0,0.00027397,2]
[424187851,1780635049000,-500.0,0.00027397,2]
[424187854,1780635049000,-1280.0,0.00027397,2]
[424187852,1780635049000,-1280.0,0.00027397,2]
[424187853,1780635049000,-500.0,0.00027397,2]
[424187849,1780635049000,-500.0,0.00027397,2]
[424187856,1780635049000,-1280.0,0.00027397,2]
[424187855,1780635049000,-500.0,0.00027397,2]
[424187857,1780635049000,-1280.0,0.00027397,2]
[424187858,1780635049000,-500.0,0.00027397,2]
[424187843,1780635049000,-1280.0,0.00027397,2]
[424187859,1780635049000,-500.0,0.00027397,2]
[424187870,1780635049000,-500.0,0.00027397,2]
[424187862,1780635049000,-1280.0,0.00027397,2]
[424187860,1780635049000,-1280.0,0.00027397,2]
[424187869,1780635049000,-500.0,0.00027397,2]
[424187871,1780635049000,-500.0,0.00027397,2]
[424187861,1780635049000,-500.0,0.00027397,2]
[424187863,1780635049000,-500.0,0.00027397,2]
[424187864,1780635049000,-1280.0,0.00027397,2]
[424187868,1780635049000,-1280.0,0.00027397,2]
[424187867,1780635049000,-500.0,0.00027397,2]
[424187866,1780635049000,-500.0,0.00027397,2]
[424187865,1780635049000,-500.0,0.00027397,2]
[424187812,1780635049000,-152.582099,0.00027,2]
[424187872,1780635049000,-1280.0,0.00027397,2]
[424187844,1780635049000,-1280.0,0.00027397,2]
[424187873,1780635049000,-500.0,0.00027397,2]
[424187842,1780635049000,-1280.0,0.00027397,2]
[424187811,1780635049000,-1541.829306,0.00027,2]
[424187816,1780635049000,-215.77576141,0.00027,7]
[424187818,1780635049000,-836.056231,0.00027,2]
[424187819,1780635049000,-836.056231,0.00027,2]
[424187820,1780635049000,-836.056231,0.00027,2]
[424187823,1780635049000,-157.975636,0.00027,2]
[424187817,1780635049000,-836.056231,0.00027,2]
[424187814,1780635049000,-151.0,0.00027,2]
[424187841,1780635049000,-1280.0,0.00027397,2]
[424187813,1780635049000,-162.178092,0.00027,2]
[424187821,1780635049000,-151.0,0.00027,2]
[424187824,1780635049000,-500.0,0.00027042,2]
[424187828,1780635049000,-200.0,0.00027378,2]
[424187826,1780635049000,-251.11897888,0.00027157,2]
[424187815,1780635049000,-151.0,0.00027,2]
[424187829,1780635049000,-4185.20803368,0.0002739,2]
[424187839,1780635049000,-1280.0,0.00027397,2]
[424187827,1780635049000,-11628.0,0.0002726,2]
[424187840,1780635049000,-1280.0,0.00027397,2]
[424187836,1780635049000,-188.016442,0.00027397,2]
[424187838,1780635049000,-188.016442,0.00027397,2]
[424187837,1780635049000,-188.016442,0.00027397,2]
[424187847,1780635049000,-500.0,0.00027397,2]
[424187832,1780635049000,-151.0,0.00027397,2]
[424187830,1780635049000,-8268.38712339,0.0002739,2]
[424187831,1780635049000,-151.0,0.00027397,2]
[424187835,1780635049000,-188.016442,0.00027397,2]
[424187825,1780635049000,-500.0,0.00027137,2]
[424187834,1780635049000,-151.0,0.00027397,2]
[424187833,1780635049000,-151.0,0.00027397,2]
[424187916,1780635050000,-1277.391822,0.00027397,2]
[424187913,1780635050000,-668.402565,0.00027397,2]
[424187919,1780635050000,-1277.391822,0.00027397,2]
[424187915,1780635050000,-1277.391822,0.00027397,2]
[424187912,1780635050000,-668.402565,0.00027397,2]
[424187905,1780635050000,-668.402565,0.00027397,2]
[424187907,1780635050000,-151.0,0.00027397,2]
[424187908,1780635050000,-668.402565,0.00027397,2]
[424187906,1780635050000,-151.0,0.00027397,2]
[424187909,1780635050000,-706.15,0.00027397,2]
[424187910,1780635050000,-668.402565,0.00027397,2]
[424187911,1780635050000,-158.419805,0.00027397,2]
[424187920,1780635050000,-1277.391822,0.00027397,2]
[424187927,1780635050000,-980.58,0.000274,14]
[424187914,1780635050000,-1277.391822,0.00027397,2]
[424187918,1780635050000,-1277.391822,0.00027397,2]
[424187921,1780635050000,-1277.391822,0.00027397,2]
[424187922,1780635050000,-21755.01,0.00027397,10]
[424187926,1780635050000,-1711.94,0.000274,7]
[424187923,1780635050000,-18129.17,0.00027397,10]
[424187924,1780635050000,-999.29727841,0.000274,2]
[424187931,1780635050000,-340.54278349,0.00027436,2]
[424187933,1780635050000,-500.0,0.000275,7]
[424187925,1780635050000,-1231.06,0.000274,7]
[424187928,1780635050000,-280.03725111,0.00027435,2]
[424187929,1780635050000,-1192.36523332,0.00027436,2]
[424187904,1780635050000,-668.402565,0.00027397,2]
[424187917,1780635050000,-1277.391822,0.00027397,2]
[424187900,1780635050000,-184.838042,0.00027397,2]
[424187892,1780635050000,-1000.0,0.00027397,20]
[424187899,1780635050000,-151.0,0.00027397,2]
[424187932,1780635050000,-204.76212221,0.000275,2]
[424187875,1780635050000,-1280.0,0.00027397,2]
[424187879,1780635050000,-1280.0,0.00027397,2]
[424187874,1780635050000,-500.0,0.00027397,2]
[424187884,1780635050000,-6010.95,0.00027397,2]
[424187883,1780635050000,-1500.0,0.00027397,2]
[424187877,1780635050000,-1280.0,0.00027397,2]
[424187881,1780635050000,-1280.0,0.00027397,2]
[424187876,1780635050000,-638.68527057,0.00027397,2]
[424187885,1780635050000,-3084.57,0.00027397,2]
[424187878,1780635050000,-150.0,0.00027397,2]
[424187880,1780635050000,-1280.0,0.00027397,2]
[424187882,1780635050000,-1283.12003538,0.00027397,2]
[424187887,1780635050000,-1022.33,0.00027397,2]
[424187895,1780635050000,-160.673706,0.00027397,2]
[424187886,1780635050000,-528.75,0.00027397,2]
[424187897,1780635050000,-160.673706,0.00027397,2]
[424187896,1780635050000,-160.673706,0.00027397,2]
[424187888,1780635050000,-388.640489,0.00027397,2]
[424187889,1780635050000,-388.640489,0.00027397,2]
[424187890,1780635050000,-388.640489,0.00027397,2]
[424187891,1780635050000,-388.640489,0.00027397,2]
[424187893,1780635050000,-300.0,0.00027397,2]
[424187894,1780635050000,-160.673706,0.00027397,2]
[424187898,1780635050000,-151.0,0.00027397,2]
[424187902,1780635050000,-668.402565,0.00027397,2]
[424187903,1780635050000,-668.402565,0.00027397,2]
[424187901,1780635050000,-151.000002,0.00027397,2]
[424187930,1780635050000,-200.0,0.00027436,2]
[424187934,1780635050000,-1262.79580771,0.00027568,10]
[424187973,1780635050000,-6999.8107934,0.00027985,2]
[424187968,1780635050000,-1711.94,0.000279,7]
[424187969,1780635050000,-980.58,0.000279,14]
[424187967,1780635050000,-1231.06,0.000279,7]
[424187964,1780635050000,-215.75882256,0.00027858,2]
[424187972,1780635050000,-200.0,0.00027984,2]
[424187975,1780635050000,-286.777986,0.00027987,7]
[424187980,1780635050000,-388.640489,0.00027987,7]
[424187978,1780635050000,-388.640489,0.00027987,7]
[424187976,1780635050000,-151.0,0.00027987,7]
[424187979,1780635050000,-388.640489,0.00027987,7]
[424187977,1780635050000,-151.0,0.00027987,7]
[424187981,1780635050000,-388.640489,0.00027987,7]
[424187982,1780635050000,-151.0,0.00027987,7]
[424187983,1780635050000,-160.673706,0.00027987,7]
[424187990,1780635050000,-325.0,0.00028,2]
[424187985,1780635050000,-160.673706,0.00027987,7]
[424187991,1780635050000,-961.57817154,0.00028,5]
[424187984,1780635050000,-160.673706,0.00027987,7]
[424187992,1780635050000,-600.0,0.00028,2]
[424187994,1780635050000,-215.77576141,0.00028,10]
[424187995,1780635050000,-10522.51303131,0.00028028,2]
[424187988,1780635050000,-271.9640699,0.00028,30]
[424187993,1780635050000,-215.77576141,0.00028,7]
[424187986,1780635050000,-160.673706,0.00027987,7]
[424187987,1780635050000,-51753.80100521,0.00028,2]
[424187989,1780635050000,-861.05870797,0.00028,60]
[424187946,1780635050000,-167.83610564,0.00027783,2]
[424187962,1780635050000,-236.68255928,0.00027858,2]
[424187966,1780635050000,-154.0893401,0.00027863,2]
[424187974,1780635050000,-578274.809274,0.00027987,2]
[424187963,1780635050000,-174.28514078,0.00027858,2]
[424187936,1780635050000,-1344.0,0.00027578,2]
[424187935,1780635050000,-299.50806145,0.00027568,10]
[424187937,1780635050000,-1335.0,0.00027578,2]
[424187939,1780635050000,-1803.87748749,0.0002767,2]
[424187938,1780635050000,-2098.1,0.00027617,7]
[424187940,1780635050000,-801.43861759,0.0002767,2]
[424187942,1780635050000,-195.38280117,0.00027783,2]
[424187943,1780635050000,-181.17222907,0.00027783,2]
[424187961,1780635050000,-272.01399629,0.00027858,2]
[424187944,1780635050000,-184.37739855,0.00027783,2]
[424187941,1780635050000,-500.0,0.00027752,2]
[424187947,1780635050000,-211.66527864,0.00027783,2]
[424187951,1780635050000,-164.83315004,0.00027856,2]
[424187949,1780635050000,-154.10661618,0.00027783,2]
[424187950,1780635050000,-171.97904073,0.00027855,2]
[424187945,1780635050000,-255.52593752,0.00027783,2]
[424187948,1780635050000,-192.79306356,0.00027783,2]
[424187965,1780635050000,-219.16015839,0.00027863,2]
[424187959,1780635050000,-172.6751785,0.00027858,2]
[424187971,1780635050000,-1175.63309829,0.00027984,2]
[424187970,1780635050000,-290.3986294,0.00027983,2]
[424187953,1780635050000,-191.09390101,0.00027858,2]
[424187960,1780635050000,-156.58981601,0.00027858,2]
[424187956,1780635050000,-161.03031198,0.00027858,2]
[424187957,1780635050000,-197.74796715,0.00027858,2]
[424187954,1780635050000,-181.01200666,0.00027858,2]
[424187955,1780635050000,-176.31692716,0.00027858,2]
[424187952,1780635050000,-175.99924985,0.00027858,2]
[424187958,1780635050000,-189.2393425,0.00027858,2]
[424188041,1780635051000,-435.93,0.00028883,30]
[424188036,1780635051000,-435.93,0.0002882,2]
[424188047,1780635051000,-435.93,0.00028915,2]
[424188038,1780635051000,-435.93,0.00028852,7]
[424188034,1780635051000,-609.74,0.000288,7]
[424188046,1780635051000,-435.09,0.00028915,2]
[424188029,1780635051000,-1650.54,0.00028797,7]
[424188045,1780635051000,-1784.0,0.00028904,2]
[424188035,1780635051000,-435.09,0.0002882,2]
[424188027,1780635051000,-435.93,0.00028788,30]
[424188022,1780635051000,-435.09,0.00028725,2]
[424188033,1780635051000,-1677.93,0.00028797,7]
[424188039,1780635051000,-150.0,0.00028855,2]
[424188044,1780635051000,-980.58,0.000289,14]
[424188043,1780635051000,-1711.94,0.000289,7]
[424188057,1780635051000,-186.17752465,0.00028971,2]
[424188037,1780635051000,-435.09,0.00028852,7]
[424188042,1780635051000,-1231.06,0.000289,7]
[424188048,1780635051000,-200.0,0.00028936,2]
[424188051,1780635051000,-905.31,0.00028964,2]
[424188050,1780635051000,-435.93,0.00028947,7]
[424188052,1780635051000,-1650.54,0.00028964,2]
[424188049,1780635051000,-435.09,0.00028947,7]
[424188058,1780635051000,-435.09,0.00028979,30]
[424188053,1780635051000,-1674.67,0.00028964,2]
[424188054,1780635051000,-905.14,0.00028964,2]
[424188060,1780635051000,-500.0,0.00028981,4]
[424188059,1780635051000,-435.93,0.00028979,30]
[424188055,1780635051000,-1652.06,0.00028964,2]
[424188028,1780635051000,-905.31,0.00028797,7]
[424188040,1780635051000,-435.09,0.00028883,30]
[424188031,1780635051000,-905.14,0.00028797,7]
[424188000,1780635051000,-1231.06,0.000284,7]
[424188025,1780635051000,-435.93,0.00028756,7]
[424187996,1780635051000,-291.0,0.00028139,2]
[424188001,1780635051000,-1711.94,0.000284,7]
[424187998,1780635051000,-4473.9,0.00028267,2]
[424188006,1780635051000,-644.79446245,0.00028529,2]
[424187997,1780635051000,-200.0,0.00028157,2]
[424188004,1780635051000,-260.4103811,0.00028526,2]
[424188003,1780635051000,-168.28,0.00028493,2]
[424188007,1780635051000,-301.14337869,0.00028531,2]
[424188002,1780635051000,-980.58,0.000284,14]
[424188005,1780635051000,-804.17102365,0.00028528,2]
[424187999,1780635051000,-500.0,0.00028366,3]
[424188008,1780635051000,-200.0,0.00028532,2]
[424188010,1780635051000,-905.31,0.0002863,30]
[424188015,1780635051000,-1652.06,0.0002863,30]
[424188020,1780635051000,-435.09,0.00028693,30]
[424188012,1780635051000,-1674.67,0.0002863,30]
[424188011,1780635051000,-1650.54,0.0002863,30]
[424188014,1780635051000,-905.14,0.0002863,30]
[424188013,1780635051000,-435.09,0.0002863,2]
[424188009,1780635051000,-15364.33,0.00028611,7]
[424188019,1780635051000,-435.93,0.00028661,7]
[424188016,1780635051000,-1677.93,0.0002863,30]
[424188018,1780635051000,-435.09,0.00028661,7]
[424188017,1780635051000,-435.93,0.0002863,2]
[424188023,1780635051000,-435.93,0.00028725,2]
[424188021,1780635051000,-435.93,0.00028693,30]
[424188024,1780635051000,-435.09,0.00028756,7]
[424188032,1780635051000,-1652.06,0.00028797,7]
[424188030,1780635051000,-1674.67,0.00028797,7]
[424188026,1780635051000,-435.09,0.00028788,30]
[424188056,1780635051000,-1677.93,0.00028964,2]
[424188120,1780635051000,-184.46840312,0.00029091,2]
[424188073,1780635051000,-1000.0,0.00029,2]
[424188095,1780635051000,-158.0,0.00029,2]
[424188092,1780635051000,-158.0,0.00029,2]
[424188098,1780635051000,-5059.35442307,0.00029,2]
[424188096,1780635051000,-5059.35442308,0.00029,2]
[424188097,1780635051000,-5059.35442307,0.00029,2]
[424188102,1780635051000,-192.02883074,0.00029,2]
[424188104,1780635051000,-3108.0,0.00029,7]
[424188105,1780635051000,-435.09,0.0002901,2]
[424188109,1780635051000,-435.09,0.00029074,30]
[424188112,1780635051000,-390.76560234,0.00029091,2]
[424188103,1780635051000,-1601.06150105,0.00029,2]
[424188106,1780635051000,-435.93,0.0002901,2]
[424188113,1780635051000,-238.2688514,0.00029091,2]
[424188107,1780635051000,-435.09,0.00029042,7]
[424188111,1780635051000,-200.0,0.0002908,2]
[424188110,1780635051000,-435.93,0.00029074,30]